bitfinex-derivatives/quotes_ETHF0:USTF0_20250426
["timestamp","ask_amount","ask_price","bid_price","bid_amount"]
[1745631618430,2.5078,1812.6,1812.2,8.7573]
[1745631618628,3.61053,1812.6,1812.4,1.1028]
[1745631618827,2.5078,1812.6,1812.5,1.10276]
[1745631619032,3.6105,1812.6,1812.2,8.7573]
[1745631619239,3.61051,1812.6,1812.2,8.7573]
[1745631619738,1.10276,1812.5,1812.3,1.10283]
[1745631619945,2.82656,1812.4,1812.2,6.6524]
[1745631620640,1.10288,1812.3,1812.2,6.6524]
[1745631620835,2.82658,1812.3,1812.2,5.5495]
[1745631621036,2.82658,1812.3,1812.2,3.94]
[1745631621241,1.10294,1812.2,1812.1,1.103]
[1745631621439,2.82664,1812.2,1812.1,1.103]
[1745631621641,2.82664,1812.2,1812.0,1.10302]
[1745631621841,2.82664,1812.2,1812.0,2.81332]
[1745631622044,0.8367,1812.4,1812.2,1.10288]
[1745631622343,1.10288,1812.3,1812.2,1.10288]
[1745631622534,1.10288,1812.3,1812.0,1.7103]
[1745631622535,1.10288,1812.3,1812.1,1.10296]
[1745631622839,1.10294,1812.2,1812.1,1.10296]
[1745631623030,1.10306,1812.0,1811.9,1.685]
[1745631623338,1.10306,1812.0,1811.8,8.25094]
[1745631623541,2.70592,1811.9,1811.8,7.1478]
[1745631623741,2.70592,1811.9,1811.8,3.2078]
[1745631624433,1.6028,1811.9,1811.8,4.31099]
[1745631624635,2.70592,1811.9,1811.8,4.8928]
[1745631624938,12.56846,1811.9,1811.4,1.6033]
[1745631625135,12.56846,1811.9,1811.0,5.96686]
[1745631625136,1.10361,1811.1,1811.0,4.48914266]
[1745631625340,1.10356,1811.2,1811.0,4.8928]
[1745631625639,1.10361,1811.1,1811.0,1.685]
[1745631625840,2.71411,1811.1,1811.0,1.685]
[1745631626042,2.71411,1811.1,1810.8,5.12008]
[1745631626340,1.10367,1811.0,1810.8,5.7416]
[1745631626536,3.2078,1811.2,1810.8,5.7416]
[1745631626537,2.71423,1810.9,1810.8,5.7416]
[1745631626843,4.31137,1811.2,1810.9,1.10369]
[1745631627045,1.10362,1811.1,1810.9,2.82899]
[1745631627245,1.6105,1811.1,1810.9,1.7253]
[1745631627750,1.6105,1811.1,1811.0,1.10367]
[1745631628249,1.10351,1811.3,1811.1,1.10361]
[1745631628439,1.6105,1811.2,1811.1,1.10361]
[1745631628639,1.6105,1811.2,1811.0,1.10362]
[1745631628854,7.1488,1811.4,1811.1,1.6062]
[1745631629145,4.31123,1811.4,1811.2,1.10353]
[1745631629348,3.2078,1811.4,1811.3,1.10349]
[1745631629547,3.2078,1811.4,1811.1,1.6062]
[1745631629742,1.10355,1811.2,1811.1,1.6062]
[1745631629940,1.1036,1811.2,1811.0,3.941]
[1745631630252,1.5921,1811.1,1811.0,5.04467]
[1745631630440,3.2078,1811.4,1811.0,3.941]
[1745631630638,3.2078,1811.4,1811.3,1.10349]
[1745631630844,4.7999,1811.4,1811.3,1.10349]
[1745631631348,4.31114,1811.6,1811.4,1.1034]
[1745631631644,1.10337,1811.5,1811.3,1.10345]
[1745631631843,2.77817,1811.5,1811.3,1.6776]
[1745631632144,1.6748,1811.5,1811.4,1.10343]
[1745631632340,3.2078,1811.6,1811.5,1.10337]
[1745631633036,5.98595,1811.6,1811.4,1.1034]
[1745631633240,5.98595,1811.6,1811.4,2.781]
[1745631633544,4.8826,1811.6,1811.5,1.10337]
[1745631633850,4.8826,1811.6,1811.5,2.78097]
[1745631634241,3.2078,1811.6,1811.5,2.78097]
[1745631634451,1.10325,1811.7,1811.6,1.10328]
[1745631634650,1.10325,1811.7,1811.5,2.78092]
[1745631635046,1.6787,1811.6,1811.5,2.78092]
[1745631635242,3.2078,1811.7,1811.6,1.10328]
[1745631635443,3.2078,1811.7,1811.5,1.6776]
[1745631635444,4.8865,1811.9,1811.5,1.6776]
[1745631635948,4.8865,1811.9,1811.8,1.10319]
[1745631636147,5.98965,1811.9,1811.7,1.1032]
[1745631636533,5.98965,1811.9,1811.5,1.6776]
[1745631636534,4.8865,1811.9,1811.8,1.10319]
[1745631637544,0.849,1812.0,1811.9,1.10312]
[1745631637950,1.6787,1812.2,1812.0,1.10304]
[1745631637951,2.78165,1812.2,1812.0,1.10304]
[1745631638147,2.78165,1812.2,1812.1,1.103]
[1745631638347,2.78165,1812.2,1811.7,5.31379]
[1745631638543,1.6787,1812.2,1812.1,1.103]
[1745631639248,2.78167,1812.2,1812.0,1.10303]
[1745631639448,1.6787,1812.2,1812.1,1.103]
[1745631639749,2.78168,1812.2,1811.9,1.7258]
[1745631639952,1.6787,1812.2,1811.8,3.2078]
[1745631640342,1.1031,1812.0,1811.9,1.10312]
[1745631640944,1.10312,1811.9,1811.8,3.2078]
[1745631641946,1.6786,1812.0,1811.9,1.10312]
[1745631642146,2.78169,1812.0,1811.8,4.31094]
[1745631642355,1.6786,1812.0,1811.9,1.10312]
[1745631642746,2.78166,1812.0,1811.9,1.10312]
[1745631642947,2.78166,1812.0,1811.8,3.2078]
[1745631643147,2.78166,1812.0,1811.8,4.31093]
[1745631643554,2.78166,1812.0,1811.8,3.2078]
[1745631643755,2.78166,1812.0,1811.8,4.31094]
[1745631644348,1.10312,1811.9,1811.8,3.2078]
[1745631644648,2.72632,1811.9,1811.8,3.2078]
[1745631644848,1.6232,1811.9,1811.8,1.10319]
[1745631645350,2.72634,1811.9,1811.7,2.829]
[1745631645547,1.10327,1811.7,1811.5,0.8601]
[1745631645747,1.96661,1811.8,1811.6,1.10326]
[1745631645953,1.6232,1811.7,1811.6,1.10326]
[1745631646559,1.10312,1811.9,1811.7,1.10322]
[1745631646749,1.10322,1811.8,1811.6,1.10329]
[1745631647151,3.2078,1811.8,1811.7,1.10325]
[1745631647556,4.8149,1811.8,1811.7,1.10325]
[1745631647756,3.2078,1811.8,1811.7,1.10325]
[1745631649751,2.71026,1811.9,1811.8,1.10319]
[1745631649752,5.91806,1811.9,1811.8,1.10319]
[1745631649951,1.1032,1811.8,1811.5,2.4894]
[1745631650164,1.10325,1811.7,1811.6,1.10328]
[1745631650366,2.84335,1811.7,1811.6,1.10328]
[1745631651057,2.84335,1811.7,1811.6,1.10331]
[1745631652165,3.909,1812.0,1811.5,1.6293]
[1745631652462,1.10328,1811.7,1811.5,1.10333]
[1745631652664,1.7401,1811.6,1811.5,1.10333]
[1745631653362,1.10343,1811.4,1811.3,3.2078]
[1745631653964,2.75153,1811.4,1811.3,3.2078]
[1745631655151,1.6481,1811.4,1811.1,6.29393266]
[1745631655363,1.10355,1811.2,1811.1,5.19034266]
[1745631655556,1.10355,1811.2,1811.1,6.29395266]
[1745631655866,1.10355,1811.2,1811.1,5.19034266]
[1745631656170,1.10354,1811.3,1811.1,6.29395266]
[1745631656464,1.7184,1811.2,1811.1,6.29395266]
[1745631657166,6.02975,1811.2,1811.0,1.6468]
[1745631657468,6.02975,1811.2,1811.0,1.10367]
[1745631657469,6.02979,1811.2,1811.0,1.10367]
[1745631657868,1.10361,1811.1,1810.9,1.10369]
[1745631658169,2.8221,1811.0,1810.8,4.8191]
[1745631658556,2.8221,1811.0,1810.8,3.2078]
[1745631658760,1.7184,1811.0,1810.9,1.10373]
[1745631659868,1.7184,1811.0,1810.9,2.80243]
[1745631660865,2.82207,1811.0,1810.9,1.6987]
[1745631661060,1.7184,1811.0,1810.9,2.80243]
[1745631661368,4.31135,1811.2,1811.0,1.10363]
[1745631661572,1.684,1811.1,1811.0,2.80233]
[1745631662069,2.78761,1811.1,1811.0,2.80233]
[1745631662271,2.78761,1811.1,1811.0,1.6987]
[1745631662464,1.10367,1811.0,1810.9,1.1037]
[1745631662665,1.10373,1810.9,1810.8,4.8256]
[1745631662966,2.69103,1811.0,1810.8,1.10378]
[1745631663167,1.10373,1810.9,1810.8,1.10378]
[1745631663364,1.10379,1810.8,1810.7,1.6178]
[1745631663560,1.10386,1810.7,1810.6,9.01987]
[1745631663765,1.10386,1810.7,1810.6,3.2078]
[1745631664280,1.96304,1810.8,1810.6,3.2078]
[1745631664468,1.96304,1810.8,1810.7,1.10386]
[1745631664665,0.8592,1810.8,1810.7,1.10386]
[1745631664870,5.13847,1811.0,1810.9,1.10373]
[1745631665170,3.2078,1812.0,1810.9,8.39914266]
[1745631665373,1.10322,1811.8,1811.6,1.10331]
[1745631665573,1.654,1811.7,1811.6,1.10331]
[1745631665876,2.75725,1811.7,1811.5,2.68623]
[1745631666071,1.654,1811.7,1811.6,1.10331]
[1745631666269,6.79192,1812.0,1811.5,1.5829]
[1745631666572,1.654,1811.9,1811.8,1.10319]
[1745631666978,4.0348,1812.0,1811.9,1.10312]
[1745631667181,4.0348,1812.0,1811.5,4.34127]
[1745631667182,1.10313,1811.9,1811.7,1.10321]
[1745631667476,5.6888,1812.0,1811.8,2.68609]
[1745631667871,6.79186,1812.0,1811.9,1.5829]
[1745631668275,3.58406,1812.0,1811.9,1.5829]
[1745631669071,2.481,1812.0,1811.9,1.5829]
[1745631669380,3.58406,1812.0,1811.9,1.5829]
[1745631669578,1.10316,1811.9,1811.7,1.10323]
[1745631669778,2.75756,1811.9,1811.7,2.68073]
[1745631670177,1.10319,1811.8,1811.7,1.5775]
[1745631670382,2.75759,1811.8,1811.6,4.31111]
[1745631670577,1.6544,1811.8,1811.7,1.10325]
[1745631670775,0.7911,1811.9,1811.8,1.10319]
[1745631671280,0.7911,1811.9,1811.7,2.6807]
[1745631671479,0.827,1812.0,1811.7,1.5775]
[1745631671681,4.31082,1812.1,1811.9,1.10311]
[1745631671882,4.31082,1812.1,1811.8,1.89004]
[1745631672080,4.31082,1812.1,1811.9,2.70561]
[1745631672284,4.31082,1812.1,1811.9,1.6025]
[1745631672485,4.31082,1812.1,1811.9,2.70561]
[1745631672679,1.10306,1812.0,1811.9,1.6025]
[1745631673079,1.6075,1812.0,1811.9,2.70562]
[1745631673380,4.3108,1812.1,1811.9,2.70562]
[1745631673582,1.6075,1812.2,1812.0,1.10306]
[1745631673783,2.71047,1812.2,1812.0,1.10304]
[1745631673977,1.6075,1812.2,1812.1,1.6025]
[1745631674179,2.71044,1812.2,1812.1,1.6025]
[1745631675082,2.71044,1812.2,1812.1,2.7055]
[1745631675382,2.71044,1812.2,1812.1,1.6025]
[1745631677186,1.6075,1812.2,1812.1,2.7055]
[1745631677484,4.31071,1812.3,1812.1,2.70548]
[1745631678187,1.10308,1812.0,1811.8,5.96896]
[1745631678380,1.10308,1812.0,1811.8,7.69776]
[1745631678689,1.10308,1812.0,1811.8,4.48996]
[1745631679182,1.10308,1812.0,1811.9,1.10312]
[1745631679383,1.10308,1812.0,1811.8,4.48996]
[1745631679885,1.10304,1812.1,1811.9,1.10309]
[1745631680087,2.67726,1812.0,1811.9,2.83189]
[1745631680286,1.5742,1812.0,1811.9,2.83189]
[1745631680485,2.67726,1812.0,1811.9,1.7288]
[1745631680685,1.5742,1812.0,1811.9,2.83192]
[1745631680887,2.67726,1812.0,1811.9,1.7288]
[1745631683285,2.67726,1812.0,1811.8,1.10314]
[1745631683487,1.5742,1812.0,1811.9,1.10312]
[1745631683676,3.2078,1812.3,1812.1,1.103]
[1745631683881,2.71429,1812.2,1811.8,3.2078]
[1745631684084,2.71429,1812.2,1812.0,1.10301]
[1745631684383,1.6113,1812.2,1812.1,2.7561]
[1745631684586,2.71424,1812.2,1812.1,2.7561]
[1745631685088,1.6113,1812.2,1812.1,2.7561]
[1745631685286,3.2078,1812.7,1812.6,1.1027]
[1745631685486,4.8191,1812.7,1812.6,1.1027]
[1745631686780,0.8146,1812.9,1812.4,6.67403]
[1745631687083,0.8146,1812.9,1812.8,1.10258]
[1745631687288,2.5545,1812.9,1812.8,1.10258]
[1745631688084,1.10237,1813.2,1812.7,3.2078]
[1745631688289,1.7399,1813.2,1812.7,8.8234]
[1745631688590,2.84223,1813.2,1813.0,1.10243]
[1745631688790,2.84228,1813.2,1812.9,1.10247]
[1745631688991,1.7399,1813.2,1813.0,1.6986]
[1745631689290,2.84225,1813.2,1813.0,2.80103]
[1745631689992,2.84225,1813.2,1813.1,1.10239]
[1745631689993,1.7399,1813.2,1813.1,1.10239]
[1745631690193,2.84224,1813.2,1813.0,1.6986]
[1745631690490,6.05007,1813.2,1813.0,1.6986]
[1745631690682,1.7399,1813.2,1813.0,2.80104]
[1745631690990,2.84224,1813.2,1813.0,2.80104]
[1745631691392,1.7399,1813.2,1813.1,1.10239]
[1745631692084,3.2078,1813.5,1813.0,1.6986]
[1745631692294,3.917,1813.7,1813.5,1.10215]
[1745631692295,1.5968,1813.6,1813.5,1.10215]
[1745631692785,0.8256,1813.9,1813.7,1.10201]
[1745631692992,1.92752,1813.9,1813.7,1.10201]
[1745631693188,2.4463,1813.9,1813.6,1.63]
[1745631693495,1.10179,1814.1,1813.9,1.10185]
[1745631693691,1.10175,1814.2,1814.0,2.73185]
[1745631693884,2.72245,1814.2,1814.0,1.63]
[1745631694193,1.10179,1814.1,1814.0,1.63]
[1745631694486,1.10185,1814.0,1813.8,1.10193]
[1745631694791,2.72251,1814.1,1813.9,2.73191]
[1745631694991,2.72251,1814.1,1813.9,1.63]
[1745631695195,2.72251,1814.1,1813.9,2.7319]
[1745631695583,1.10188,1814.0,1813.7,4.0561]
[1745631695791,1.10182,1814.1,1813.8,1.10197]
[1745631695991,1.10182,1814.1,1813.9,1.6205]
[1745631696190,1.5853,1814.0,1813.9,2.72241]
[1745631696385,3.2078,1814.3,1813.9,4.8283]
[1745631696589,3.2078,1814.3,1814.1,1.10177]
[1745631696887,1.5853,1814.4,1814.2,2.72223]
[1745631697385,2.68692,1814.4,1814.2,2.72223]
[1745631698589,2.68692,1814.4,1814.2,1.6205]
[1745631699092,1.10167,1814.3,1814.2,1.6205]
[1745631699394,1.10175,1814.2,1814.0,3.915]
[1745631699596,1.5847,1814.1,1814.0,6.62914]
[1745631700494,1.10175,1814.2,1814.0,2.71414]
[1745631700705,2.68645,1814.2,1814.0,2.71414]
[1745631702195,3.2078,1814.4,1814.0,1.6123]
[1745631702493,6.02202,1814.4,1814.2,1.10172]
[1745631703097,1.10168,1814.3,1814.1,1.10175]
[1745631703290,2.81428,1814.3,1814.1,1.10175]
[1745631703497,1.7126,1814.3,1814.1,1.10175]
[1745631703698,2.8143,1814.3,1814.2,1.10173]
[1745631703996,1.58,1814.5,1814.1,3.2078]
[1745631704197,3.2078,1814.6,1814.4,1.10159]
[1745631704388,1.7126,1814.5,1814.2,5.542]
[1745631704596,1.10179,1814.1,1814.0,4.96785]
[1745631704797,3.61292,1814.4,1814.0,3.866]
[1745631704998,1.5946,1814.3,1814.1,1.10177]
[1745631705198,2.69631,1814.3,1814.1,1.10177]
[1745631705403,1.10173,1814.2,1814.1,1.10177]
[1745631705599,1.5946,1814.2,1814.1,1.10177]
[1745631705899,2.69633,1814.2,1814.1,1.10177]
[1745631706800,1.5946,1814.2,1814.1,1.10177]
[1745631707098,2.69633,1814.2,1814.1,1.10177]
[1745631707299,1.5946,1814.2,1814.0,6.5909]
[1745631707497,2.69637,1814.2,1814.0,6.5909]
[1745631707696,9.34896,1814.2,1813.7,4.0561]
[1745631707897,1.9589,1814.1,1813.9,1.10188]
[1745631708100,3.6824,1814.1,1813.9,1.10188]
[1745631708493,1.10185,1814.0,1813.9,1.10188]
[1745631708696,1.10191,1813.9,1813.8,1.10192]
[1745631708893,1.10191,1813.9,1813.7,6.90059]
[1745631709398,1.7235,1814.0,1813.7,5.7986]
[1745631709607,1.7235,1814.0,1813.9,1.10191]
[1745631709993,4.7249,1814.4,1813.7,5.7986]
[1745631709994,1.10177,1814.2,1813.7,5.7986]
[1745631710300,1.10179,1814.1,1814.0,1.10181]
[1745631710503,1.10179,1814.1,1813.9,2.84437]
[1745631711203,1.10179,1814.1,1814.0,1.10185]
[1745631711401,1.10179,1814.1,1814.0,2.73115]
[1745631711894,2.82527,1814.2,1814.0,2.73115]
[1745631712095,1.96052,1814.4,1814.0,1.6293]
[1745631712295,3.70092,1814.4,1814.2,1.10167]
[1745631712596,3.70092,1814.4,1814.3,1.6293]
[1745631712904,1.1017,1814.3,1814.1,3.866]
[1745631713098,2.8421,1814.3,1814.1,4.96774]
[1745631713401,1.96053,1814.4,1814.2,1.10173]
[1745631713592,1.96053,1814.4,1814.3,1.6293]
[1745631713996,3.53503,1814.4,1814.3,1.6293]
[1745631714198,1.10167,1814.3,1814.1,4.96774]
[1745631714396,1.5745,1814.2,1814.1,4.96779]
[1745631714703,2.67623,1814.2,1814.1,4.96779]
[1745631714909,1.5745,1814.2,1814.1,4.96779]
[1745631715700,2.67623,1814.2,1814.1,4.96779]
[1745631717604,1.5745,1814.2,1814.1,4.96779]
[1745631718498,2.67623,1814.2,1814.1,4.96779]
[1745631721400,1.96055,1814.4,1814.1,3.866]
[1745631721602,3.57875,1814.4,1814.2,1.6461]
[1745631721797,1.10167,1814.3,1814.2,2.74779]
[1745631722299,2.71987,1814.3,1814.2,2.74779]
[1745631722505,1.6182,1814.3,1814.2,2.74779]
[1745631723006,2.71987,1814.3,1814.2,2.74779]
[1745631723706,2.71987,1814.3,1813.9,8.05800266]
[1745631723707,1.10185,1814.0,1813.9,2.09544266]
[1745631724016,4.37245,1814.3,1813.9,3.84064266]
[1745631724303,1.10185,1814.0,1813.9,4.94253266]
[1745631724506,1.10185,1814.0,1813.9,1.28134266]
[1745631725007,1.10203,1813.7,1813.6,3.65689]
[1745631725211,1.10209,1813.6,1813.5,7.0728]
[1745631725509,6.05326,1814.0,1813.5,8.17495]
[1745631725510,1.10208,1813.7,1813.5,8.17495]
[1745631725712,1.6023,1813.6,1813.5,8.17495]
[1745631725909,1.6023,1813.6,1813.4,0.8565]
[1745631725910,7.56544,1813.6,1813.0,3.2078]
[1745631726108,1.10242,1813.1,1812.8,15.5856]
[1745631726308,3.2078,1813.4,1812.9,1.6583]
[1745631726614,1.10237,1813.2,1812.9,2.76081]
[1745631726808,1.5848,1813.1,1812.9,2.76081]
[1745631727006,1.5848,1813.1,1812.9,1.6583]
[1745631727204,4.7926,1813.1,1812.6,3.2078]
[1745631727509,1.10262,1812.8,1812.6,4.8661]
[1745631727706,1.5848,1812.7,1812.6,4.8661]
[1745631728099,2.68744,1812.7,1812.6,3.2078]
[1745631728410,2.68744,1812.7,1812.5,7.04274]
[1745631728812,1.5848,1812.7,1812.5,8.70104]
[1745631729007,1.5848,1812.7,1812.3,0.8276]
[1745631729206,4.7926,1812.7,1812.3,6.3519]
[1745631729514,1.10276,1812.5,1812.3,5.5243]
[1745631729711,1.92444,1812.6,1812.3,6.62716]
[1745631729911,1.6899,1812.5,1812.4,1.6033]
[1745631730510,1.10274,1812.6,1812.4,2.70612]
[1745631730713,2.79264,1812.6,1812.4,2.70612]
[1745631731012,1.10265,1812.7,1812.5,1.10276]
[1745631731211,1.10265,1812.7,1812.6,1.6033]
[1745631731812,1.6899,1812.7,1812.6,1.6033]
[1745631732611,1.6899,1812.7,1812.6,2.706]
[1745631732811,1.6899,1812.7,1812.6,1.6033]
[1745631733916,1.6899,1812.7,1812.6,2.706]
[1745631734912,1.92428,1812.8,1812.6,2.70597]
[1745631735109,3.61848,1812.8,1812.6,2.70597]
[1745631735411,2.5159,1812.8,1812.7,1.10264]
[1745631735612,2.5159,1812.8,1812.7,2.69964]
[1745631736307,0.812,1812.9,1812.8,1.10258]
[1745631736513,0.812,1812.9,1812.7,1.597]
[1745631736813,1.6337,1812.9,1812.7,1.597]
[1745631737111,1.6337,1812.9,1812.8,1.10258]
[1745631738112,2.73622,1812.9,1812.7,2.69961]
[1745631738311,1.6337,1812.9,1812.7,2.69961]
[1745631738617,1.10258,1812.8,1812.7,1.597]
[1745631739104,1.10264,1812.7,1812.6,7.0448]
[1745631739310,2.74064,1812.7,1812.6,7.0448]
[1745631739506,2.74064,1812.7,1812.6,4.9397]
[1745631739507,1.638,1812.7,1812.6,4.9397]
[1745631739702,1.638,1812.7,1812.6,6.5803]
[1745631740916,2.74064,1812.7,1812.6,5.4776]
[1745631741316,2.74064,1812.7,1812.6,3.837]
[1745631741518,3.59984,1812.7,1812.6,3.837]
[1745631741711,2.4972,1812.7,1812.6,3.837]
[1745631741915,2.4972,1812.7,1812.6,4.9397]
[1745631742111,3.59984,1812.7,1812.6,3.837]
[1745631743016,3.59984,1812.7,1812.5,1.10273]
[1745631743418,2.4972,1812.7,1812.6,1.1027]
[1745631744009,1.92685,1812.9,1812.4,1.6406]
[1745631744308,3.62365,1812.9,1812.8,1.10258]
[1745631744514,5.15819,1813.0,1812.6,3.837]
[1745631744720,5.15819,1813.0,1812.9,1.10252]
[1745631744908,3.2078,1813.0,1812.9,1.10252]
[1745631745119,1.7048,1813.1,1813.0,1.10245]
[1745631745514,2.80719,1813.1,1813.0,1.10245]
[1745631745817,1.7048,1813.1,1813.0,1.10245]
[1745631746025,0.8118,1813.3,1813.2,1.10233]
[1745631746212,1.7048,1813.4,1813.3,1.10227]
[1745631746518,4.30992,1813.6,1813.4,1.10218]
[1745631746721,4.9126,1813.6,1813.2,3.837]
[1745631746922,4.9126,1813.6,1813.3,2.72566]
[1745631747108,6.01473,1813.6,1813.4,1.10219]
[1745631747520,1.10219,1813.5,1813.3,2.72565]
[1745631747819,2.80349,1813.5,1813.3,2.72565]
[1745631748413,1.10221,1813.4,1813.3,1.6234]
[1745631748608,2.80351,1813.4,1813.3,2.72567]
[1745631749219,1.10209,1813.6,1813.4,1.10216]
[1745631749419,1.10209,1813.6,1813.5,1.5902]
[1745631749622,2.80336,1813.7,1813.5,2.69235]
[1745631749813,1.7013,1813.7,1813.3,3.2078]
[1745631750014,1.10211,1813.6,1813.4,4.93916]
[1745631750214,1.10211,1813.6,1813.4,6.52936]
[1745631750515,1.7013,1813.7,1813.4,5.4272]
[1745631750516,1.10215,1813.5,1813.4,5.4272]
[1745631750710,2.81385,1813.5,1813.4,5.4272]
[1745631750910,1.7117,1813.5,1813.4,6.52941]
[1745631751115,2.81385,1813.5,1813.4,6.52941]
[1745631751620,2.81385,1813.5,1813.4,5.4272]
[1745631751924,1.10221,1813.4,1813.2,1.6837]
[1745631752125,1.10227,1813.3,1813.2,5.5262]
[1745631752423,1.10227,1813.3,1813.1,8.14719]
[1745631752424,1.10232,1813.3,1813.1,8.14719]
[1745631752623,1.10232,1813.3,1813.2,1.10233]
[1745631752825,1.10232,1813.3,1813.2,2.79153]
[1745631753021,1.10233,1813.2,1813.1,3.2078]
[1745631753215,1.10231,1813.3,1813.1,4.31019]
[1745631753420,2.81396,1813.4,1813.2,2.79152]
[1745631754221,2.81391,1813.4,1813.3,1.10227]
[1745631754426,1.7117,1813.4,1813.2,1.6892]
[1745631754624,1.10227,1813.3,1813.2,2.79153]
[1745631754926,2.81396,1813.4,1813.2,2.79153]
[1745631755330,1.10227,1813.3,1813.2,2.79153]
[1745631756118,1.10233,1813.2,1813.1,3.2078]
[1745631756315,2.70503,1813.2,1813.1,3.2078]
[1745631756621,2.70503,1813.2,1813.0,6.52902]
[1745631757714,1.10239,1813.1,1813.0,5.4266]
[1745631757919,2.81969,1813.1,1813.0,5.4266]
[1745631758625,1.10235,1813.2,1813.1,1.10239]
[1745631758827,3.2078,1813.4,1813.0,5.4266]
[1745631758828,1.10239,1813.1,1813.0,1.5896]
[1745631759028,1.10245,1813.0,1812.8,10.87954]
[1745631759332,1.7173,1812.9,1812.8,10.87954]
[1745631759523,1.10245,1813.0,1812.8,10.87954]
[1745631759524,1.10244,1813.1,1812.9,1.10252]
[1745631759822,2.76824,1813.1,1812.9,1.10252]
[1745631760222,2.76824,1813.1,1812.6,6.81853]
[1745631760223,1.10264,1812.8,1812.7,3.837]
[1745631760423,7.62961,1813.1,1812.6,5.16445]
[1745631760424,1.10264,1812.7,1812.6,3.2078]
[1745631760619,1.10262,1812.8,1812.6,4.3105]
[1745631760827,1.10262,1812.8,1812.7,1.10264]
[1745631761331,1.6658,1812.9,1812.5,5.7851]
[1745631761332,1.10264,1812.7,1812.5,5.7851]
[1745631761629,2.76844,1812.7,1812.6,1.1027]
[1745631761928,1.10255,1812.9,1812.7,1.10261]
[1745631762125,1.10264,1812.7,1812.6,1.10267]
[1745631762332,1.10264,1812.7,1812.5,5.78513]
[1745631762631,1.6658,1812.6,1812.5,5.78513]
[1745631762933,2.7685,1812.6,1812.5,5.78513]
[1745631763225,1.10276,1812.5,1812.4,1.10278]
[1745631763430,1.10282,1812.4,1812.3,7.8618]
[1745631763624,1.10282,1812.4,1812.3,3.2078]
[1745631764223,3.2078,1812.4,1812.0,5.75675]
[1745631764424,1.10294,1812.2,1812.0,1.95675]
[1745631764635,2.8364,1812.1,1812.0,1.95675]
[1745631764928,2.8364,1812.1,1812.0,0.8537]
[1745631765331,1.7334,1812.1,1812.0,1.95676]
[1745631766130,1.7334,1812.1,1812.0,1.10306]
[1745631766324,2.8364,1812.1,1812.0,1.10306]
[1745631766632,1.7334,1812.1,1812.0,1.10306]
[1745631767131,1.10298,1812.2,1812.0,1.10306]
[1745631767333,2.71248,1812.2,1812.0,1.10306]
[1745631768524,1.103,1812.1,1811.9,14.05088]
[1745631768729,2.7125,1812.1,1811.9,14.05088]
[1745631769036,2.7125,1812.1,1812.0,1.10306]
[1745631769237,2.7125,1812.1,1811.9,12.9478]
[1745631769537,2.7125,1812.1,1811.9,14.0509]
[1745631770137,1.6095,1812.1,1812.0,1.10306]
[1745631771131,1.6095,1812.1,1811.9,12.9478]
[1745631771132,2.71912,1812.3,1812.2,1.10294]
[1745631771331,1.10276,1812.5,1812.3,1.10285]
[1745631771530,1.10282,1812.4,1812.3,1.10285]
[1745631771943,1.7145,1812.5,1812.4,1.10282]
[1745631772338,2.81726,1812.5,1812.3,1.10283]
[1745631772832,1.7145,1812.5,1812.4,1.10282]
[1745631773236,1.10279,1812.5,1812.3,1.10283]
[1745631773627,1.10273,1812.6,1812.4,1.10278]
[1745631774135,2.77043,1812.6,1812.4,1.10278]
[1745631774343,1.6677,1812.6,1812.5,1.10276]
[1745631774638,2.7704,1812.6,1812.5,1.10276]
[1745631774840,1.6677,1812.6,1812.5,1.10276]
[1745631775534,0.8701,1812.7,1812.6,1.1027]
[1745631776341,1.97274,1812.7,1812.6,1.1027]
[1745631776644,1.1026,1812.8,1812.6,1.10265]
[1745631777139,1.6265,1812.8,1812.7,1.10264]
[1745631777639,2.72911,1812.8,1812.6,2.82975]
[1745631778140,1.6265,1812.8,1812.7,2.84174]
[1745631778640,4.8987,1813.0,1812.9,1.10252]
[1745631778834,1.6909,1813.0,1812.9,1.10252]
[1745631779536,3.374,1813.0,1812.9,1.10252]
[1745631779737,4.47645,1813.0,1812.9,1.10252]
[1745631779938,3.374,1813.0,1812.9,1.10252]
[1745631780445,2.5199,1813.0,1812.9,1.10252]
[1745631780949,3.62235,1813.0,1812.7,4.9469]
[1745631781245,1.10257,1812.9,1812.7,4.9469]
[1745631781441,2.79167,1812.9,1812.7,4.9469]
[1745631781648,2.79167,1812.9,1812.7,6.0495]
[1745631782032,1.10264,1812.7,1812.6,0.8159]
[1745631782343,1.10264,1812.7,1812.5,9.75591]
[1745631782536,1.10264,1812.7,1812.6,1.1027]
[1745631782747,2.527,1812.9,1812.6,1.1027]
[1745631782946,1.10262,1812.8,1812.6,1.1027]
[1745631783146,1.6891,1812.7,1812.6,1.1027]
[1745631783344,2.79174,1812.7,1812.6,1.1027]
[1745631783740,2.79174,1812.7,1812.5,9.75593]
[1745631784444,1.1027,1812.6,1812.5,8.6532]
[1745631784748,2.7433,1812.6,1812.5,7.0088]
[1745631784947,2.7433,1812.6,1812.5,3.2078]
[1745631785145,1.1029,1812.3,1812.1,14.05177]
[1745631785346,1.1029,1812.3,1812.2,1.10294]
[1745631785542,1.1029,1812.3,1812.1,12.9488]
[1745631785745,2.74346,1812.4,1812.2,1.10294]